fUST/lending_fUST_20260104
["ID","MTS","AMOUNT","RATE_DAILY","PERIOD"]
[400393705,1767505840539,-474.0,0.00013144,2]
[400393707,1767505840550,-474.0,0.00013148,2]
[400393709,1767505840561,-600.0,0.00013151,2]
[400393711,1767505840571,-474.0,0.00013211,2]
[400393713,1767505840582,-474.0,0.00013211,2]
[400393715,1767505840594,-474.0,0.00013224,2]
[400393717,1767505840605,-474.0,0.00013238,2]
[400393719,1767505840615,-585.69923713,0.00013273,2]
[400393721,1767505840627,-474.0,0.00013275,2]
[400393723,1767505840638,-474.0,0.00013276,2]
[400393725,1767505840649,-2876.18991768,0.00013289,2]
[400393727,1767505840661,-595.37131296,0.00013294,2]
[400393729,1767505840672,-500.0,0.000133,2]
[400393731,1767505840684,-151.0,0.000133,2]
[400393733,1767505840694,-474.0,0.00013313,2]
[400393735,1767505840705,-474.0,0.00013378,2]
[400393737,1767505840716,-420.0,0.00013384,2]
[400393739,1767505840726,-420.0,0.00013384,2]
[400393741,1767505840737,-420.0,0.00013384,2]
[400393743,1767505840749,-420.0,0.00013384,2]
[400393745,1767505840759,-1680.0,0.00013385,2]
[400393747,1767505840771,-1680.0,0.00013413,2]
[400393749,1767505840781,-600.0,0.00013424,2]
[400393751,1767505840792,-6353.45998901,0.00013497,2]
[400393753,1767505840802,-302.0,0.000135,2]
[400393755,1767505840813,-500.0,0.00013574,2]
[400393757,1767505840823,-628.0,0.00013651,2]
[400393759,1767505840834,-1365.0,0.00013651,2]
[400393760,1767505840844,-2145.0,0.00013651,2]
[400393762,1767505840854,-150.208,0.00013651,2]
[400393764,1767505840865,-150.863,0.00013651,2]
[400393766,1767505840876,-4489.0,0.00013651,2]
[400393768,1767505840886,-476.0072151,0.00013699,2]
[400393770,1767505840897,-1055.83785,0.00013699,2]
[400393771,1767505840907,-151.0,0.000137,2]
[400393772,1767505840918,-2982.60894464,0.00013837,2]
[400393773,1767505840929,-617.40005154,0.00013842,2]
[400393774,1767505840938,-504.62961894,0.00013848,2]
[400393775,1767505840949,-155.6290296,0.0001389,2]
[400393776,1767505840958,-599.8788729,0.0001389,2]
[400393777,1767505840968,-163.3416485,0.0001389,2]
[400393778,1767505840979,-153.0,0.0001389,2]
[400393779,1767505840989,-600.3695392,0.0001389,2]
[400393780,1767505841000,-153.0,0.0001389,2]
[400393781,1767505841011,-153.0,0.0001389,2]
[400393782,1767505841021,-600.3695392,0.0001389,2]
[400393783,1767505841032,-151.0,0.00014,2]
[400393784,1767505841043,-500.0,0.00014,2]
[400393785,1767505841053,-547.12,0.00014068,7]
[400393786,1767505841063,-500.0,0.00014068,7]
[400393787,1767505841074,-500.0,0.00014068,7]
[400393788,1767505841084,-500.0,0.00014068,7]
[400393789,1767505841095,-500.0,0.00014068,7]
[400393790,1767505841106,-500.0,0.00014068,7]
[400393791,1767505841116,-500.0,0.00014068,7]
[400393792,1767505841126,-500.0,0.00014068,7]
[400393793,1767505841139,-500.0,0.00014068,7]
[400393794,1767505841149,-500.0,0.00014068,7]
[400393795,1767505841159,-500.0,0.00014068,7]
[400393796,1767505841169,-500.0,0.00014068,7]
[400393797,1767505841178,-500.0,0.00014068,7]
[400393798,1767505841188,-500.0,0.00014068,7]
[400393799,1767505841198,-500.0,0.00014068,7]
[400393800,1767505841208,-500.0,0.00014068,7]
[400393801,1767505841218,-500.0,0.00014068,7]
[400393802,1767505841229,-500.0,0.00014068,7]
[400393803,1767505841239,-500.0,0.00014068,7]
[400393804,1767505841249,-500.0,0.00014068,7]
[400393805,1767505841258,-500.0,0.00014068,7]
[400393806,1767505841268,-500.0,0.00014068,7]
[400393807,1767505841279,-500.0,0.00014068,7]
[400393808,1767505841291,-500.0,0.00014068,7]
[400393809,1767505841301,-500.0,0.00014068,7]
[400393810,1767505841312,-500.0,0.00014068,7]
[400393811,1767505841322,-500.0,0.00014068,7]
[400393812,1767505841334,-500.0,0.00014068,7]
[400393813,1767505841343,-500.0,0.00014068,7]
[400393814,1767505841353,-500.0,0.00014068,7]
[400393815,1767505841364,-500.0,0.00014068,7]
[400393816,1767505841374,-500.0,0.00014068,7]
[400393817,1767505841384,-500.0,0.00014068,7]
[400393818,1767505841394,-500.0,0.00014068,7]
[400393819,1767505841405,-500.0,0.00014068,7]
[400393820,1767505841415,-500.0,0.00014068,7]
[400393821,1767505841425,-500.0,0.00014068,7]
[400393822,1767505841435,-500.0,0.00014068,7]
[400393823,1767505841445,-500.0,0.00014068,7]
[400393824,1767505841454,-500.0,0.00014068,7]
[400393825,1767505841571,-500.0,0.00014068,7]
[400393826,1767505841581,-500.0,0.00014068,7]
[400393827,1767505841592,-500.0,0.00014068,7]
[400393828,1767505841602,-242.11,0.00014068,7]
[400393829,1767505841612,-1630.86468608,0.00014068,7]
[400393830,1767505841622,-395.19090377,0.0001412,2]
[400393831,1767505841631,-1429.92676111,0.00014378,2]
[400393832,1767505841645,-714.77225739,0.00014378,2]
[400393833,1767505841655,-640.24385345,0.0001439,2]
[400393834,1767505841664,-151.0,0.000144,2]
[400393835,1767505841673,-271.82744768,0.00014444,10]
[400393836,1767505841683,-720.0,0.00014466,2]
[400393837,1767505841693,-1041.66666667,0.00014495,2]
[400393838,1767505841702,-587.0,0.0001469,2]
[400393839,1767505841712,-477.32824782,0.00014691,2]
[400393840,1767505841725,-2.67175218,0.00014691,2]
[400393841,1767505841735,-2755.53685202,0.00014712,2]
[400393842,1767505841982,-151.0,0.00012198,2]
[400393843,1767505841992,-151.0,0.00012198,2]
[400393844,1767505842002,-151.0,0.00012198,2]
[400393845,1767505842013,-271.38,0.00012329,2]
[400393846,1767505842023,-362.48268639,0.00014712,2]
[400393847,1767505842129,-0.00987839,0.00014712,2]
[400393852,1767505845067,-151.0,0.00012198,2]
[400393853,1767505845077,-151.0,0.00012198,2]
[400393854,1767505845086,-151.0,0.00012198,2]
[400393855,1767505845096,-151.0,0.00012198,2]
[400393856,1767505845107,-151.0,0.00012198,2]
[400393857,1767505845116,-151.0,0.00012198,2]
[400393858,1767505845127,-151.0,0.00012198,2]
[400393859,1767505845142,-301.015,0.00013651,2]
[400393860,1767505845153,-4586.71606563,0.00014712,2]
[400393861,1767505845163,-600.3695392,0.00014712,2]
[400393862,1767505845174,-600.3695392,0.00014712,2]
[400393863,1767505845183,-306.0,0.00014712,2]
[400393864,1767505845194,-600.3695392,0.00014712,2]
[400393865,1767505845203,-153.0,0.00014712,2]
[400393866,1767505845313,-610.784987,0.00014712,2]
[400393867,1767505845323,-153.0,0.00014712,2]
[400393868,1767505845334,-153.0,0.00014712,2]
[400393869,1767505845346,-21008.84704769,0.00014736,2]
[400393871,1767505846104,-151.0,0.00012198,2]
[400393873,1767505846115,-151.0,0.00012198,2]
[400393875,1767505846124,-1052.47656471,0.00014736,2]
[400393886,1767505876643,157.66,7.909e-05,2]
[400393887,1767505877047,183.93,8.214e-05,2]
[400393888,1767505877438,210.21,8.518e-05,2]
[400393889,1767505877845,236.48,8.822e-05,2]
[400393890,1767505878293,262.76,9.126e-05,2]
[400393891,1767505909164,155.0,0.0001,2]
[400393892,1767506088562,13896.0,0.00030137,120]
[400393893,1767506088848,3045.41065533,0.00012015,2]
[400393894,1767506129572,10000.01,0.00011296,2]
[400393895,1767506129596,10000.01,0.00011296,2]
[400393896,1767506129620,8571.2088516,0.00011296,2]
[400393898,1767506495879,-151.0,0.00012088,2]
[400393899,1767506495900,-151.0,0.00012088,2]
[400393900,1767506495921,-156.48658679,0.00012088,2]
[400393901,1767506495942,-591.0,0.00012094,2]
[400393902,1767506495963,-300.0,0.00012094,2]
[400393903,1767506495984,-323.30557658,0.00012094,2]
[400393904,1767506496005,-500.82274639,0.00012095,2]
[400393905,1767506496028,-500.0,0.00012095,2]
[400393906,1767506496050,-500.0,0.00012095,2]
[400393907,1767506496073,-500.0,0.00012095,2]
[400393908,1767506496095,-465.31767506,0.00012095,2]
[400393909,1767506496118,-500.0,0.00012095,2]
[400393910,1767506496141,-500.0,0.00012095,2]
[400393911,1767506496163,-500.0,0.00012095,2]
[400393912,1767506496184,-500.0,0.00012095,2]
[400393913,1767506496205,-500.0,0.00012095,2]
[400393914,1767506496228,-500.0,0.00012095,2]
[400393915,1767506496249,-500.0,0.00012095,2]
[400393916,1767506496270,-500.0,0.00012095,2]
[400393917,1767506496291,-500.0,0.00012095,2]
[400393918,1767506496312,-500.0,0.00012095,2]
[400393919,1767506496333,-442.87115671,0.00012095,2]
[400393920,1767506496356,-418.19625847,0.00012095,2]
[400393934,1767506974847,1428.8011484,0.00011995,2]
[400393935,1767506974876,10000.01,0.00011995,2]
[400393936,1767506974902,10000.01,0.00011995,2]
[400393937,1767506974927,10000.01,0.00011995,2]
[400393938,1767506974954,10000.01,0.00011995,2]
[400393939,1767506974979,10000.01,0.00011995,2]
[400393940,1767506975004,10000.01,0.00011995,2]
[400393941,1767506975029,10000.01,0.00011995,2]
[400393942,1767506975054,10000.01,0.00011995,2]
[400393943,1767506975085,10000.01,0.00011995,2]
[400393944,1767506980774,-367.67213981,0.00011995,2]
[400393945,1767506998154,194.83,6.454e-05,2]
[400393946,1767506998684,292.24,6.747e-05,2]
[400393947,1767506999231,389.66,7.041e-05,2]
[400393948,1767506999487,487.07,7.334e-05,2]
[400393949,1767507000029,584.49,7.628e-05,2]
[400393950,1767507000440,681.9,7.921e-05,2]
[400393951,1767507000841,779.31,8.214e-05,2]
[400393952,1767507001260,876.73,8.508e-05,2]
[400393953,1767507001330,300.0,0.00011994,2]
[400393954,1767507001702,974.14,8.801e-05,2]
[400393955,1767507002182,300.0,0.00011994,2]
[400393956,1767507002288,300.0,0.00011994,2]
[400393957,1767507002554,207.15357246,0.00011989,2]
[400393958,1767507003874,1200.0,0.00011994,2]
[400393995,1767507032438,-972.72,0.00011995,2]
[400394004,1767507032540,-138188.58653046,0.00011995,2]
[400394005,1767507032551,-589.0,0.00011995,2]
[400394006,1767507032560,-316.83946505,0.00012044,2]
[400394007,1767507032569,-10000.0,0.00012093,2]
[400394008,1767507032579,-500.0,0.00012093,2]
[400394009,1767507032589,-218.36863056,0.00012093,2]
[400394010,1767507032598,-500.0,0.00012093,2]
[400394011,1767507032608,-500.0,0.00012093,2]
[400394012,1767507032617,-500.0,0.00012093,2]
[400394013,1767507032627,-500.0,0.00012093,2]
[400394015,1767507032636,-500.0,0.00012093,2]
[400394017,1767507032647,-500.0,0.00012093,2]
[400394018,1767507032660,-500.0,0.00012093,2]
[400394019,1767507032670,-500.0,0.00012093,2]
[400394020,1767507032796,-500.0,0.00012093,2]
[400394021,1767507032806,-167.91048305,0.00012093,2]
[400394022,1767507032816,-500.0,0.00012093,2]
[400394023,1767507032826,-500.0,0.00012093,2]
[400394024,1767507032835,-500.0,0.00012093,2]
[400394025,1767507032845,-488.1364975,0.00012093,2]
[400394026,1767507032854,-500.0,0.00012093,2]
[400394027,1767507032864,-500.0,0.00012093,2]
[400394028,1767507032873,-500.0,0.00012093,2]
[400394029,1767507032882,-500.0,0.00012093,2]
[400394030,1767507032891,-500.0,0.00012093,2]
[400394031,1767507032900,-500.0,0.00012093,2]
[400394032,1767507032910,-500.0,0.00012093,2]
[400394033,1767507032919,-500.0,0.00012093,2]
[400394034,1767507032929,-500.0,0.00012093,2]
[400394035,1767507032938,-500.0,0.00012093,2]
[400394036,1767507032948,-500.0,0.00012093,2]
[400394037,1767507032958,-500.0,0.00012093,2]
[400394038,1767507032967,-385.0,0.00012093,2]
[400394039,1767507032977,-500.0,0.00012093,2]
[400394040,1767507032986,-500.0,0.00012093,2]
[400394041,1767507032996,-500.0,0.00012093,2]
[400394042,1767507033005,-500.0,0.00012095,2]
[400394043,1767507033015,-500.0,0.00012095,2]
[400394044,1767507033025,-522.6499019,0.00012095,2]
[400394045,1767507033034,-500.0,0.00012095,2]
[400394046,1767507033044,-500.0,0.00012095,2]
[400394047,1767507033054,-500.0,0.00012095,2]
[400394048,1767507033064,-500.0,0.00012095,2]
[400394049,1767507033073,-500.0,0.00012095,2]
[400394050,1767507033083,-500.0,0.00012095,2]
[400394051,1767507033092,-500.0,0.00012095,2]
[400394052,1767507033102,-500.0,0.00012095,2]
[400394053,1767507033112,-500.0,0.00012095,2]
[400394054,1767507033122,-500.0,0.00012095,2]
[400394055,1767507033131,-500.0,0.00012095,2]
[400394056,1767507033141,-500.0,0.00012095,2]
[400394057,1767507033152,-500.0,0.00012095,2]
[400394058,1767507033162,-500.0,0.00012095,2]
[400394059,1767507033173,-500.0,0.00012095,2]
[400394060,1767507033183,-500.0,0.00012095,2]
[400394061,1767507033192,-430.0,0.00012095,2]
[400394062,1767507033202,-151.0,0.000121,2]
[400394063,1767507033212,-151.0,0.000121,2]
[400394064,1767507033222,-151.0,0.000121,2]
[400394065,1767507033231,-151.0,0.000121,2]
[400394066,1767507033242,-151.0,0.000121,2]
[400394067,1767507033252,-151.0,0.000121,2]
[400394068,1767507033262,-151.0,0.000121,2]
[400394069,1767507033272,-151.0,0.000121,2]
[400394070,1767507033281,-500.0,0.000121,2]
[400394071,1767507033291,-151.65,0.000121,2]
[400394072,1767507033301,-2151.5001181,0.00012124,2]
[400394073,1767507033311,-2674.60743027,0.00012173,2]
[400394074,1767507033320,-553.64373807,0.00012173,2]
[400394075,1767507033330,-226.15,0.00012329,2]
[400394076,1767507033339,-188.46,0.00012329,2]
[400394077,1767507033348,-157.05,0.00012329,2]
[400394078,1767507033357,-785.28,0.00012329,2]
[400394079,1767507033366,-300.0,0.00012437,2]
[400394080,1767507033375,-300.0,0.00012437,2]
[400394081,1767507033385,-300.0,0.00012437,2]
[400394082,1767507033394,-300.0,0.00012437,2]
[400394083,1767507033403,-300.0,0.00012437,2]
[400394084,1767507033413,-300.0,0.00012437,2]
[400394085,1767507033423,-300.0,0.00012437,2]
[400394086,1767507033432,-300.0,0.00012437,2]
[400394087,1767507033441,-300.0,0.00012437,2]
[400394088,1767507033451,-300.0,0.00012437,2]
[400394089,1767507033460,-300.0,0.00012437,2]
[400394090,1767507033471,-300.0,0.00012437,2]
[400394091,1767507033480,-300.0,0.00012437,2]
[400394092,1767507033489,-300.0,0.00012437,2]
[400394093,1767507033498,-300.0,0.00012437,2]
[400394094,1767507033508,-600.0,0.00012437,2]
[400394095,1767507033517,-574.12855637,0.00012721,2]
[400394096,1767507033526,-3811.34122929,0.000129,2]
[400394097,1767507033535,-9281.18204438,0.00012905,2]
[400394098,1767507033545,-420.0,0.00013166,2]
[400394099,1767507033555,-1680.0,0.00013193,2]
[400394100,1767507033564,-595.37131296,0.00013269,2]
[400394101,1767507033573,-600.0,0.00013424,2]
[400394102,1767507033583,-4153.0002362,0.00013472,2]
[400394103,1767507033592,-720.0,0.00013681,2]
[400394104,1767507033601,-1003.045957,0.00013699,2]
[400394105,1767507033610,-2145.0,0.00013708,2]
[400394106,1767507033620,-253.33,0.00013785,2]
[400394107,1767507033629,-617.40005154,0.00013817,2]
[400394108,1767507033639,-260.79,0.00013885,2]
[400394109,1767507033648,-373.87056876,0.00014044,2]
[400394110,1767507033659,-200.0,0.00014152,2]
[400394111,1767507033669,-1607.76085193,0.00014441,2]
[400394112,1767507033679,-587.0,0.00014454,2]
[400394113,1767507033689,-2480.95502995,0.0001446,2]
[400394114,1767507033699,-150.9344406,0.00014488,2]
[400394115,1767507033708,-2351.0,0.00014512,2]
[400394116,1767507033718,-600.0,0.00014794,2]
[400394117,1767507033727,-271.82744768,0.00014821,11]
[400394118,1767507033738,-6154.5003543,0.00014852,2]
[400394119,1767507033747,-159.0,0.000149,2]
[400394120,1767507033757,-160.44070513,0.000149,2]
[400394121,1767507033766,-500.0,0.00015,2]
[400394122,1767507033775,-864.0,0.00015049,2]
[400394123,1767507033786,-245.413995,0.00015068,2]
[400394124,1767507033796,-271.82744768,0.00015197,13]
[400394125,1767507033805,-3811.34122925,0.00015235,2]
[400394126,1767507033814,-271.82744768,0.00015574,14]
[400394127,1767507033824,-1017.76,0.000158,6]
[400394128,1767507033834,-30000.0,0.000158,3]
[400394129,1767507033844,-823.0,0.00015867,2]
[400394130,1767507033853,-271.82744768,0.0001595,16]
[400394131,1767507033863,-302.0,0.00015963,2]
[400394132,1767507033872,-16827.6016742,0.0001599,2]
[400394146,1767507038572,-178.0,0.00013708,2]
[400394147,1767507038582,-636.17686695,0.00014365,2]
[400394148,1767507038592,-14188.51321549,0.0001599,2]
[400394149,1767507038605,-6683.42334103,0.0001599,2]
[400394150,1767507038615,-500.0,0.00016,2]
[400394151,1767507038624,-159.98,0.00016,2]
[400394152,1767507038634,-430.90167246,0.00016044,2]
[400394153,1767507038644,-600.0,0.00016164,2]
[400394154,1767507038655,-8156.0004724,0.00016231,6]
[400394155,1767507038666,-300.0,0.000163,2]
[400394156,1767507038676,-271.82744768,0.00016327,17]
[400394157,1767507038686,-15171.45336429,0.00016338,2]
[400394158,1767507038698,-745.2,0.00016438,2]
[400394159,1767507038708,-4365.960003,0.00016438,2]
[400394160,1767507038717,-4365.960003,0.00016438,2]
[400394161,1767507038728,-4365.960003,0.00016438,2]
[400394162,1767507038738,-4365.960003,0.00016438,2]
[400394163,1767507038748,-4365.960003,0.00016438,2]
[400394164,1767507038758,-4365.960003,0.00016438,2]
[400394165,1767507038767,-4365.960003,0.00016438,2]
[400394166,1767507038777,-4365.960003,0.00016438,2]
[400394167,1767507038787,-4365.960003,0.00016438,2]
[400394168,1767507038797,-4365.960003,0.00016438,2]
[400394169,1767507038807,-4365.960003,0.00016438,2]
[400394170,1767507038816,-4365.960003,0.00016438,2]
[400394171,1767507038826,-4365.960003,0.00016438,2]
[400394172,1767507038836,-4365.960003,0.00016438,2]
[400394173,1767507038846,-4365.960003,0.00016438,2]
[400394174,1767507038859,-4365.960003,0.00016438,2]
[400394175,1767507038869,-4365.960003,0.00016438,2]
[400394176,1767507038879,-4365.960003,0.00016438,2]
[400394177,1767507038891,-4365.960003,0.00016438,2]
[400394178,1767507038903,-4365.960003,0.00016438,2]
[400394179,1767507038913,-4365.960003,0.00016438,2]
[400394180,1767507038923,-4365.960003,0.00016438,2]
[400394181,1767507038933,-4365.960003,0.00016438,2]
[400394182,1767507038943,-4365.960003,0.00016438,2]
[400394183,1767507038952,-4365.960003,0.00016438,2]
[400394184,1767507038962,-4365.960003,0.00016438,2]
[400394185,1767507038972,-4365.960003,0.00016438,2]
[400394186,1767507038983,-4365.960003,0.00016438,2]
[400394187,1767507038993,-4365.960003,0.00016438,2]
[400394188,1767507039003,-4365.960003,0.00016438,2]
[400394189,1767507039014,-4365.960003,0.00016438,2]
[400394190,1767507039025,-4365.960003,0.00016438,2]
[400394191,1767507039036,-4365.960003,0.00016438,2]
[400394192,1767507039046,-4365.960003,0.00016438,2]
[400394193,1767507039057,-4365.960003,0.00016438,2]
[400394194,1767507039067,-4365.960003,0.00016438,2]
[400394195,1767507039077,-4365.960003,0.00016438,2]
[400394196,1767507039088,-4365.960003,0.00016438,2]
[400394197,1767507039097,-4365.960003,0.00016438,2]
[400394198,1767507039108,-4365.960003,0.00016438,2]
[400394199,1767507039118,-4365.960003,0.00016438,2]
[400394200,1767507039129,-4365.960003,0.00016438,2]
[400394201,1767507039140,-4365.960003,0.00016438,2]
[400394202,1767507039150,-4365.960003,0.00016438,2]
[400394203,1767507039161,-4365.960003,0.00016438,2]
[400394204,1767507039171,-4365.960003,0.00016438,2]
[400394205,1767507039183,-10172.03907947,0.00016438,2]
[400394206,1767507039194,-10172.03907947,0.00016438,2]
[400394207,1767507039205,-10172.03907947,0.00016438,2]
[400394208,1767507039215,-10172.03907947,0.00016438,2]
[400394209,1767507039226,-10172.03907947,0.00016438,2]
[400394210,1767507039236,-10172.03907947,0.00016438,2]
[400394211,1767507039246,-10172.03907947,0.00016438,2]
[400394212,1767507039257,-10172.03907947,0.00016438,2]
[400394213,1767507039267,-10172.03907947,0.00016438,2]
[400394214,1767507039276,-10172.03907947,0.00016438,2]
[400394215,1767507039286,-10172.03907947,0.00016438,2]
[400394216,1767507039296,-10172.03907947,0.00016438,2]
[400394217,1767507039306,-10172.03907947,0.00016438,2]
[400394218,1767507039315,-10172.03907947,0.00016438,2]
[400394219,1767507039445,-10172.03907947,0.00016438,2]
[400394220,1767507039455,-10172.03907947,0.00016438,2]
[400394221,1767507039465,-10172.03907947,0.00016438,2]
[400394222,1767507039475,-10172.03907947,0.00016438,2]
[400394223,1767507039484,-10172.03907947,0.00016438,2]
[400394224,1767507039494,-10172.03907947,0.00016438,2]
[400394225,1767507039504,-10172.03907947,0.00016438,2]
[400394226,1767507039514,-10172.03907947,0.00016438,2]
[400394227,1767507039524,-10172.03907947,0.00016438,2]
[400394228,1767507039534,-10172.03907947,0.00016438,2]
[400394229,1767507039544,-10172.03907947,0.00016438,2]
[400394230,1767507039554,-10172.03907947,0.00016438,2]
[400394231,1767507039563,-10172.03907947,0.00016438,2]
[400394232,1767507039572,-10172.03907947,0.00016438,2]
[400394233,1767507039581,-10172.03907947,0.00016438,2]
[400394234,1767507039590,-10172.03907947,0.00016438,2]
[400394235,1767507039599,-10172.03907947,0.00016438,2]
[400394236,1767507039608,-10172.03907947,0.00016438,2]
[400394237,1767507039618,-1039.17029858,0.00016438,2]
[400394238,1767507039631,-1839.187663,0.00016438,2]
[400394239,1767507039643,-3921.72438981,0.00016438,2]
[400394240,1767507039659,-3348.83845746,0.00016438,2]
[400394241,1767507039668,-315.23399624,0.00016438,2]
[400394242,1767507039680,-9833.68681261,0.00016438,2]
[400394243,1767507039691,-171.38860869,0.00016438,2]
[400394244,1767507039702,-1143.75644152,0.00016438,2]
[400394264,1767507041011,-0.01223958,0.00016438,2]
[400394344,1767507047368,-419.189,0.00013708,2]
[400394345,1767507047378,-1041.66666667,0.0001599,2]
[400394346,1767507047388,-8833.76351906,0.00016438,2]
[400394347,1767507047397,-3351.82603348,0.00016438,2]
[400394348,1767507073064,245.99,6.529e-05,2]
[400394349,1767507073472,368.98,6.826e-05,2]
[400394350,1767507073854,491.98,7.123e-05,2]
[400394351,1767507074280,614.97,7.419e-05,2]
[400394352,1767507074779,737.96,7.716e-05,2]
[400394353,1767507075091,860.96,8.013e-05,2]
[400394354,1767507075515,983.95,8.31e-05,2]
[400394355,1767507075911,1106.94,8.607e-05,2]
[400394356,1767507076333,1229.94,8.903e-05,2]
[400394357,1767507098100,329.02818225,0.00011994,2]
[400394358,1767507106297,500.0,0.00011994,2]
[400394359,1767507106445,165.34849972,0.00011994,2]
[400394360,1767507106497,161.47,0.0001,2]
[400394361,1767507106533,240.87894256,0.00011994,2]
[400394362,1767507108351,161.47,0.000102,2]
[400394363,1767507110442,161.47,0.000104,2]
[400394364,1767507112089,161.47,0.000106,2]
[400394365,1767507114042,161.47,0.000108,2]
[400394366,1767507114379,500.0,0.00011994,2]
[400394367,1767507114430,500.0,0.00011994,2]
[400394368,1767507114468,315.73437547,0.00011994,2]
[400394369,1767507114496,184.26562453,0.00011994,2]
[400394370,1767507114531,500.0,0.00011994,2]
[400394371,1767507114571,500.0,0.00011994,2]
[400394372,1767507114610,500.0,0.00011994,2]
[400394373,1767507114690,500.0,0.00011994,2]
[400394374,1767507114815,500.0,0.00011994,2]
[400394375,1767507114853,500.0,0.00011994,2]
[400394376,1767507114926,500.0,0.00011994,2]
[400394377,1767507115047,500.0,0.00011994,2]
[400394378,1767507115084,500.0,0.00011994,2]
[400394379,1767507115126,500.0,0.00011994,2]
[400394380,1767507115616,266.9935879,0.00011994,2]
[400394381,1767507115813,500.0,0.00011994,2]
[400394382,1767507116122,500.0,0.00011994,2]
[400394383,1767507124917,358.44645753,0.00011994,2]
[400394384,1767507124989,500.0,0.00011994,2]
[400394385,1767507125031,265.0,0.00011994,2]
[400394386,1767507127254,2425.30433004,0.00011994,2]
[400394387,1767507127283,10000.01,0.00011994,2]
[400394388,1767507127312,10000.01,0.00011994,2]
[400394389,1767507127341,10000.01,0.00011994,2]
[400394390,1767507127370,10000.01,0.00011994,2]
[400394391,1767507127398,10000.01,0.00011994,2]
[400394392,1767507127429,10000.01,0.00011994,2]
[400394393,1767507127457,10000.01,0.00011994,2]
[400394394,1767507135102,899.44870347,0.00027397,120]
[400394395,1767507149464,153.85,8.175e-05,2]
[400394396,1767507149896,192.32,8.516e-05,2]
[400394397,1767507150315,230.78,8.857e-05,2]
[400394398,1767507150691,269.24,9.197e-05,2]
[400394399,1767507151434,307.71,9.538e-05,2]
[400394400,1767507151828,346.17,9.879e-05,2]
[400394401,1767507152227,384.64,0.00010219,2]
[400394402,1767507153250,-6636.50253478,0.00011994,2]
[400394403,1767507153522,-10000.01,0.00011994,2]
[400394404,1767507153713,-10000.01,0.00011994,2]
[400394405,1767507153895,-10000.01,0.00011994,2]
[400394406,1767507154046,-10000.01,0.00011994,2]
[400394407,1767507154168,-10000.01,0.00011994,2]
[400394408,1767507154271,-10000.01,0.00011994,2]
[400394409,1767507159238,-10000.01,0.00011994,2]
[400394410,1767507172798,3658.56667035,0.00011904,2]
[400394411,1767507181354,5000.0,0.00011904,2]
[400394412,1767507204947,1341.44332965,0.00011904,2]
[400394413,1767507204972,3417.1322402,0.00011904,2]
[400394414,1767507217726,168.33,6.557e-05,2]
[400394415,1767507218136,252.5,6.855e-05,2]
[400394416,1767507218627,336.67,7.153e-05,2]
[400394417,1767507219085,420.84,7.451e-05,2]
[400394418,1767507219501,505.0,7.749e-05,2]
[400394419,1767507219889,589.17,8.047e-05,2]
[400394420,1767507220309,673.34,8.345e-05,2]
[400394421,1767507220715,757.51,8.643e-05,2]
[400394422,1767507221295,841.67,8.941e-05,2]
[400394423,1767507292164,157.93,7.745e-05,2]
[400394424,1767507292572,184.25,8.043e-05,2]